[Event "Titled Tuesday Blitz October 11 Late 2022"]
[White "Vivas Zamora, Fabian Ernesto"]
[Black "Korchmar, Vasiliy"]
[WhiteFideId "3902480"]
[BlackFideId "24131750"]
[WhiteElo "2236"]
[BlackElo "2370"]
[Result "1-0"]
[Round "05"]
[TimeControl "180+1"]
[Date "2022.10.12"]
[WhiteClock "0:00:27"]
[BlackClock "0:00:02"]

1. e4 {[%clk 0:03:00]}  c5 {[%clk 0:03:00]} 2. Nf3 {[%clk 0:02:59]}  d6 {[%clk 0:03:00]} 3. d4 {[%clk 0:02:57]}  cxd4 {[%clk 0:03:01]} 4. Nxd4 {[%clk 0:02:58]}  Nf6 {[%clk 0:03:01]} 5. Nc3 {[%clk 0:02:58]}  Nc6 {[%clk 0:03:02]} 6. Bg5 {[%clk 0:02:57]}  Bd7 {[%clk 0:03:02]} 7. Bc4 {[%clk 0:02:45]}  e6 {[%clk 0:02:56]} 8. Bb3 {[%clk 0:02:33]}  a6 {[%clk 0:02:48]} 9. Qd3 {[%clk 0:02:27]}  h6 {[%clk 0:02:31]} 10. Bh4 {[%clk 0:02:20]}  Ne5 {[%clk 0:02:27]} 11. Qe2 {[%clk 0:02:14]}  g5 {[%clk 0:02:11]} 12. Bg3 {[%clk 0:02:13]}  b5 {[%clk 0:01:59]} 13. a3 {[%clk 0:01:40]}  Rc8 {[%clk 0:01:55]} 14. h4 {[%clk 0:01:20]}  g4 {[%clk 0:01:53]} 15. f4 {[%clk 0:01:19]}  gxf3 {[%clk 0:01:27]} 16. gxf3 {[%clk 0:01:11]}  Rg8 {[%clk 0:01:27]} 17. Bh2 {[%clk 0:00:58]}  h5 {[%clk 0:01:05]} 18. O-O-O {[%clk 0:00:57]}  Qb6 {[%clk 0:00:38]} 19. Bf4 {[%clk 0:00:53]}  b4 {[%clk 0:00:28]} 20. Na4 {[%clk 0:00:40]}  Qa5 {[%clk 0:00:23]} 21. Bd2 {[%clk 0:00:40]}  Rb8 {[%clk 0:00:04]} 22. Bxb4 {[%clk 0:00:37]}  Rxb4 {[%clk 0:00:04]} 23. axb4 {[%clk 0:00:38]}  Qxb4 {[%clk 0:00:04]} 24. Qxa6 {[%clk 0:00:37]}  Be7 {[%clk 0:00:02]} 25. Qa8+ {[%clk 0:00:26]}  Bd8 {[%clk 0:00:02]} 26. c3 {[%clk 0:00:27]} 1-0


[Site "https://www.chess.com"]

[Event "Titled Tuesday Blitz October 11 Late 2022"]
[White "Wadsworth, Matthew J"]
[Black "D`Arruda, Ricardo D."]
[WhiteFideId "415804"]
[BlackFideId "100692"]
[WhiteElo "2367"]
[BlackElo "2455"]
[Result "1-0"]
[Round "05"]
[TimeControl "180+1"]
[Date "2022.10.12"]
[WhiteClock "0:00:02"]
[BlackClock "0:00:02"]

1. c4 {[%clk 0:03:00]}  e5 {[%clk 0:02:48]} 2. Nf3 {[%clk 0:03:00]}  Nc6 {[%clk 0:02:47]} 3. d4 {[%clk 0:02:59]}  exd4 {[%clk 0:02:46]} 4. Nxd4 {[%clk 0:03:00]}  Nf6 {[%clk 0:02:46]} 5. Nxc6 {[%clk 0:02:59]}  bxc6 {[%clk 0:02:45]} 6. g3 {[%clk 0:02:58]}  d5 {[%clk 0:02:45]} 7. Bg2 {[%clk 0:02:56]}  Bb4+ {[%clk 0:02:42]} 8. Bd2 {[%clk 0:02:55]}  Qe7 {[%clk 0:02:36]} 9. cxd5 {[%clk 0:02:54]}  Bxd2+ {[%clk 0:02:34]} 10. Qxd2 {[%clk 0:02:53]}  cxd5 {[%clk 0:02:33]} 11. Bxd5 {[%clk 0:02:40]}  Nxd5 {[%clk 0:02:34]} 12. Qxd5 {[%clk 0:02:39]}  Rb8 {[%clk 0:02:23]} 13. Qc6+ {[%clk 0:02:32]}  Bd7 {[%clk 0:02:20]} 14. Qxc7 {[%clk 0:02:30]}  Rc8 {[%clk 0:02:19]} 15. Qf4 {[%clk 0:02:28]}  O-O {[%clk 0:01:59]} 16. Nc3 {[%clk 0:02:12]}  Bh3 {[%clk 0:01:39]} 17. Rd1 {[%clk 0:02:00]}  Rfe8 {[%clk 0:01:37]} 18. Rd2 {[%clk 0:01:54]}  Qb7 {[%clk 0:01:31]} 19. f3 {[%clk 0:01:44]}  Bg2 {[%clk 0:01:27]} 20. Rg1 {[%clk 0:01:37]}  Bxf3 {[%clk 0:01:26]} 21. Rf1 {[%clk 0:01:30]}  Bg2 {[%clk 0:01:12]} 22. Rf2 {[%clk 0:01:30]}  Bh3 {[%clk 0:01:13]} 23. Qf3 {[%clk 0:01:22]}  Qb4 {[%clk 0:00:57]} 24. Qxf7+ {[%clk 0:01:12]}  Kh8 {[%clk 0:00:57]} 25. Qh5 {[%clk 0:00:52]}  Bg4 {[%clk 0:00:54]} 26. Qb5 {[%clk 0:00:46]}  Qe7 {[%clk 0:00:48]} 27. Kf1 {[%clk 0:00:34]}  Bh3+ {[%clk 0:00:47]} 28. Kg1 {[%clk 0:00:33]}  Qe3 {[%clk 0:00:44]} 29. Qd3 {[%clk 0:00:33]}  Qb6 {[%clk 0:00:42]} 30. Qd4 {[%clk 0:00:28]}  Qc7 {[%clk 0:00:33]} 31. e4 {[%clk 0:00:23]}  h6 {[%clk 0:00:28]} 32. Qd6 {[%clk 0:00:17]}  Qa5 {[%clk 0:00:23]} 33. Qd5 {[%clk 0:00:15]}  Qb6 {[%clk 0:00:23]} 34. Qh5 {[%clk 0:00:14]}  Qe6 {[%clk 0:00:17]} 35. Nd5 {[%clk 0:00:11]}  Bg4 {[%clk 0:00:16]} 36. Qh4 {[%clk 0:00:09]}  Rc1+ {[%clk 0:00:15]} 37. Rf1 {[%clk 0:00:08]}  Rxf1+ {[%clk 0:00:16]} 38. Kxf1 {[%clk 0:00:09]}  Rc8 {[%clk 0:00:13]} 39. Nc3 {[%clk 0:00:07]}  Rf8+ {[%clk 0:00:11]} 40. Rf2 {[%clk 0:00:06]}  Re8 {[%clk 0:00:09]} 41. h3 {[%clk 0:00:06]}  Qc4+ {[%clk 0:00:09]} 42. Kg2 {[%clk 0:00:06]}  Be6 {[%clk 0:00:09]} 43. g4 {[%clk 0:00:06]}  Qd4 {[%clk 0:00:09]} 44. Qg3 {[%clk 0:00:06]}  Rd8 {[%clk 0:00:07]} 45. Qf4 {[%clk 0:00:06]}  Qd3 {[%clk 0:00:06]} 46. g5 {[%clk 0:00:06]}  h5 {[%clk 0:00:05]} 47. Qf3 {[%clk 0:00:06]}  Qxf3+ {[%clk 0:00:03]} 48. Kxf3 {[%clk 0:00:05]}  Bxh3 {[%clk 0:00:02]} 49. Rh2 {[%clk 0:00:05]}  Bg4+ {[%clk 0:00:03]} 50. Kf4 {[%clk 0:00:06]}  Rd3 {[%clk 0:00:03]} 51. e5 {[%clk 0:00:05]}  Kg8 {[%clk 0:00:03]} 52. Rf2 {[%clk 0:00:03]}  Kf7 {[%clk 0:00:04]} 53. Ne4 {[%clk 0:00:02]}  Rd8 {[%clk 0:00:01]} 54. Nd6+ {[%clk 0:00:01]}  Kg6 {[%clk 0:00:02]} 55. Ke4 {[%clk 0:00:01]}  Rb8 {[%clk 0:00:02]} 56. b3 {[%clk 0:00:01]}  Rb4+ {[%clk 0:00:03]} 57. Kd5 {[%clk 0:00:01]}  Kxg5 {[%clk 0:00:02]} 58. e6 {[%clk 0:00:02]} 1-0


[Site "https://www.chess.com"]

[Event "Titled Tuesday Blitz October 11 Late 2022"]
[White "Yano, William Jorge Froes"]
[Black "Zaloznyy, Mike"]
[WhiteFideId "2112949"]
[BlackFideId "2023075"]
[WhiteElo "2122"]
[BlackElo "2126"]
[Result "1-0"]
[Round "05"]
[TimeControl "180+1"]
[Date "2022.10.12"]
[WhiteClock "0:00:30"]
[BlackClock "0:00:20"]

1. e4 {[%clk 0:02:57]}  d6 {[%clk 0:02:58]} 2. d4 {[%clk 0:02:57]}  Nf6 {[%clk 0:02:59]} 3. Nc3 {[%clk 0:02:58]}  e5 {[%clk 0:02:59]} 4. Nf3 {[%clk 0:02:57]}  Nbd7 {[%clk 0:02:59]} 5. Be2 {[%clk 0:02:57]}  Be7 {[%clk 0:02:59]} 6. Be3 {[%clk 0:02:57]}  c6 {[%clk 0:02:59]} 7. h3 {[%clk 0:02:57]}  Qc7 {[%clk 0:03:00]} 8. g4 {[%clk 0:02:57]}  h6 {[%clk 0:03:00]} 9. Qd2 {[%clk 0:02:57]}  b5 {[%clk 0:03:00]} 10. a3 {[%clk 0:02:50]}  a5 {[%clk 0:03:00]} 11. Bd3 {[%clk 0:02:39]}  Rb8 {[%clk 0:03:00]} 12. Ne2 {[%clk 0:02:36]}  Nb6 {[%clk 0:02:54]} 13. b3 {[%clk 0:02:31]}  a4 {[%clk 0:02:44]} 14. Ng3 {[%clk 0:02:30]}  axb3 {[%clk 0:02:44]} 15. cxb3 {[%clk 0:02:29]}  Be6 {[%clk 0:02:44]} 16. Nf5 {[%clk 0:02:27]}  Bf8 {[%clk 0:02:43]} 17. O-O {[%clk 0:02:00]}  Bxb3 {[%clk 0:02:41]} 18. d5 {[%clk 0:02:00]}  Nc4 {[%clk 0:02:38]} 19. Qc3 {[%clk 0:01:54]}  Nxe3 {[%clk 0:02:27]} 20. fxe3 {[%clk 0:01:54]}  Bc4 {[%clk 0:02:25]} 21. Bxc4 {[%clk 0:01:51]}  bxc4 {[%clk 0:02:22]} 22. Qxc4 {[%clk 0:01:51]}  g6 {[%clk 0:02:22]} 23. Ng3 {[%clk 0:01:47]}  Rc8 {[%clk 0:02:06]} 24. Rfc1 {[%clk 0:01:46]}  Qb6 {[%clk 0:01:59]} 25. Kf2 {[%clk 0:01:35]}  h5 {[%clk 0:01:51]} 26. g5 {[%clk 0:01:32]}  h4 {[%clk 0:01:51]} 27. Ne2 {[%clk 0:01:23]}  Nh7 {[%clk 0:01:40]} 28. Rab1 {[%clk 0:01:09]}  Qa7 {[%clk 0:01:40]} 29. dxc6 {[%clk 0:01:07]}  Be7 {[%clk 0:01:40]} 30. Rb7 {[%clk 0:01:06]}  Qxa3 {[%clk 0:01:37]} 31. Rc3 {[%clk 0:00:41]}  Qa1 {[%clk 0:01:15]} 32. Rc1 {[%clk 0:00:41]}  Qa3 {[%clk 0:01:14]} 33. Rc3 {[%clk 0:00:36]}  Qa1 {[%clk 0:01:14]} 34. Qb3 {[%clk 0:00:36]}  Qh1 {[%clk 0:01:07]} 35. Neg1 {[%clk 0:00:31]}  Nxg5 {[%clk 0:00:20]} 36. Nxg5 {[%clk 0:00:30]}  Qh2+ {[%clk 0:00:20]} 37. Kf1 {[%clk 0:00:31]}  Qg3 {[%clk 0:00:20]} 38. Qxf7+ {[%clk 0:00:29]}  Kd8 {[%clk 0:00:20]} 39. Qxe7# {[%clk 0:00:30]} 1-0


[Site "https://www.chess.com"]

[Event "Titled Tuesday Blitz October 11 Late 2022"]
[White "Yurovskykh, Oleksandr"]
[Black "Haszon, David"]
[WhiteFideId "14134020"]
[BlackFideId "733610"]
[WhiteElo "2303"]
[BlackElo "2211"]
[Result "1-0"]
[Round "05"]
[TimeControl "180+1"]
[Date "2022.10.12"]
[WhiteClock "0:00:10"]
[BlackClock "0:00:13"]

1. d4 {[%clk 0:02:54]}  Nf6 {[%clk 0:02:59]} 2. Nf3 {[%clk 0:02:53]}  d5 {[%clk 0:02:51]} 3. c3 {[%clk 0:02:53]}  g6 {[%clk 0:02:51]} 4. Bf4 {[%clk 0:02:52]}  Bg7 {[%clk 0:02:51]} 5. e3 {[%clk 0:02:53]}  O-O {[%clk 0:02:52]} 6. Nbd2 {[%clk 0:02:53]}  c5 {[%clk 0:02:52]} 7. Be2 {[%clk 0:02:50]}  Nc6 {[%clk 0:02:52]} 8. O-O {[%clk 0:02:50]}  b6 {[%clk 0:02:51]} 9. Qa4 {[%clk 0:02:47]}  Bb7 {[%clk 0:02:45]} 10. Rad1 {[%clk 0:02:47]}  e6 {[%clk 0:02:22]} 11. Ne5 {[%clk 0:02:45]}  Qc8 {[%clk 0:02:12]} 12. h3 {[%clk 0:02:41]}  Nd7 {[%clk 0:02:08]} 13. Nxd7 {[%clk 0:02:38]}  Qxd7 {[%clk 0:02:07]} 14. Qa3 {[%clk 0:02:39]}  cxd4 {[%clk 0:01:53]} 15. exd4 {[%clk 0:02:32]}  a6 {[%clk 0:01:31]} 16. Qb3 {[%clk 0:02:09]}  b5 {[%clk 0:01:30]} 17. a3 {[%clk 0:02:06]}  Na5 {[%clk 0:01:14]} 18. Qa2 {[%clk 0:01:52]}  Nc4 {[%clk 0:00:57]} 19. Nb3 {[%clk 0:01:45]}  Rfc8 {[%clk 0:00:50]} 20. Nc5 {[%clk 0:01:42]}  Qc6 {[%clk 0:00:48]} 21. b3 {[%clk 0:01:39]}  Nb6 {[%clk 0:00:42]} 22. b4 {[%clk 0:01:08]}  Nd7 {[%clk 0:00:23]} 23. Qd2 {[%clk 0:00:55]}  Nxc5 {[%clk 0:00:23]} 24. bxc5 {[%clk 0:00:37]}  e5 {[%clk 0:00:23]} 25. Be3 {[%clk 0:00:37]}  e4 {[%clk 0:00:21]} 26. Bf4 {[%clk 0:00:33]}  Qe6 {[%clk 0:00:20]} 27. Rb1 {[%clk 0:00:30]}  Bc6 {[%clk 0:00:21]} 28. a4 {[%clk 0:00:23]}  bxa4 {[%clk 0:00:20]} 29. Rb6 {[%clk 0:00:23]}  Qd7 {[%clk 0:00:19]} 30. Ra1 {[%clk 0:00:21]}  f6 {[%clk 0:00:19]} 31. Bg4 {[%clk 0:00:20]}  f5 {[%clk 0:00:19]} 32. Bd1 {[%clk 0:00:21]}  Bf8 {[%clk 0:00:19]} 33. Qa2 {[%clk 0:00:20]}  h6 {[%clk 0:00:18]} 34. Bxa4 {[%clk 0:00:21]}  g5 {[%clk 0:00:17]} 35. Be5 {[%clk 0:00:21]}  Bg7 {[%clk 0:00:17]} 36. Bxg7 {[%clk 0:00:20]}  Kxg7 {[%clk 0:00:18]} 37. Bxc6 {[%clk 0:00:20]}  Rxc6 {[%clk 0:00:18]} 38. Qa4 {[%clk 0:00:20]}  Rac8 {[%clk 0:00:18]} 39. Qxa6 {[%clk 0:00:19]}  f4 {[%clk 0:00:17]} 40. Qb5 {[%clk 0:00:13]}  f3 {[%clk 0:00:15]} 41. Raa6 {[%clk 0:00:12]}  fxg2 {[%clk 0:00:14]} 42. Rxc6 {[%clk 0:00:11]}  Qxh3 {[%clk 0:00:14]} 43. Rg6+ {[%clk 0:00:10]}  Kh8 {[%clk 0:00:13]} 44. Rxh6+ {[%clk 0:00:10]} 1-0


[Site "https://www.chess.com"]

[Event "Titled Tuesday Blitz October 11 Late 2022"]
[White "Zhukov, Maksim"]
[Black "Reprintsev, Alexander"]
[WhiteFideId "34181790"]
[BlackFideId "14100541"]
[WhiteElo "1929"]
[BlackElo "2230"]
[Result "1/2-1/2"]
[Round "05"]
[TimeControl "180+1"]
[Date "2022.10.12"]
[WhiteClock "0:00:10"]
[BlackClock "0:00:18"]

1. Nf3 {[%clk 0:02:49]}  d5 {[%clk 0:02:58]} 2. g3 {[%clk 0:02:50]}  Nc6 {[%clk 0:02:58]} 3. Bg2 {[%clk 0:02:51]}  e5 {[%clk 0:02:57]} 4. O-O {[%clk 0:02:52]}  e4 {[%clk 0:02:57]} 5. Ne1 {[%clk 0:02:52]}  Nf6 {[%clk 0:02:56]} 6. d3 {[%clk 0:02:53]}  Bg4 {[%clk 0:02:53]} 7. h3 {[%clk 0:02:53]}  Bh5 {[%clk 0:02:53]} 8. dxe4 {[%clk 0:02:53]}  dxe4 {[%clk 0:02:52]} 9. Qxd8+ {[%clk 0:02:52]}  Rxd8 {[%clk 0:02:52]} 10. g4 {[%clk 0:02:52]}  Bg6 {[%clk 0:02:51]} 11. Bg5 {[%clk 0:02:51]}  h5 {[%clk 0:02:45]} 12. Nc3 {[%clk 0:02:44]}  hxg4 {[%clk 0:02:43]} 13. hxg4 {[%clk 0:02:45]}  Ne5 {[%clk 0:02:23]} 14. Bxf6 {[%clk 0:02:39]}  gxf6 {[%clk 0:02:23]} 15. Bxe4 {[%clk 0:02:39]}  Nxg4 {[%clk 0:02:20]} 16. Bxg6 {[%clk 0:02:38]}  fxg6 {[%clk 0:02:19]} 17. Nf3 {[%clk 0:02:38]}  Bb4 {[%clk 0:02:15]} 18. Nb5 {[%clk 0:02:29]}  c6 {[%clk 0:02:11]} 19. Nbd4 {[%clk 0:02:24]}  Nh2 {[%clk 0:01:59]} 20. Nxh2 {[%clk 0:02:20]}  Rxd4 {[%clk 0:01:58]} 21. f3 {[%clk 0:02:13]}  Bc5 {[%clk 0:01:55]} 22. Kg2 {[%clk 0:02:11]}  Rd2 {[%clk 0:01:55]} 23. Rfe1 {[%clk 0:02:07]}  Rxc2 {[%clk 0:01:54]} 24. Rac1 {[%clk 0:02:07]}  Rxc1 {[%clk 0:01:51]} 25. Rxc1 {[%clk 0:02:08]}  Bd6 {[%clk 0:01:51]} 26. Nf1 {[%clk 0:02:05]}  Bf4 {[%clk 0:01:46]} 27. Rd1 {[%clk 0:02:05]}  Ke7 {[%clk 0:01:44]} 28. e3 {[%clk 0:02:05]}  Be5 {[%clk 0:01:43]} 29. f4 {[%clk 0:02:03]}  Bc7 {[%clk 0:01:34]} 30. Kf3 {[%clk 0:02:01]}  Rh1 {[%clk 0:01:29]} 31. Kg2 {[%clk 0:02:01]}  Rh5 {[%clk 0:01:29]} 32. Ng3 {[%clk 0:02:00]}  Ra5 {[%clk 0:01:27]} 33. a3 {[%clk 0:01:58]}  f5 {[%clk 0:01:27]} 34. Kf3 {[%clk 0:01:58]}  Rb5 {[%clk 0:01:27]} 35. Rd2 {[%clk 0:01:58]}  Rb3 {[%clk 0:01:24]} 36. Rh2 {[%clk 0:01:56]}  Bb6 {[%clk 0:01:21]} 37. Re2 {[%clk 0:01:41]}  Kf6 {[%clk 0:01:19]} 38. Nf1 {[%clk 0:01:33]}  a5 {[%clk 0:01:15]} 39. Nd2 {[%clk 0:01:32]}  Rd3 {[%clk 0:01:12]} 40. Nc4 {[%clk 0:01:31]}  Bc7 {[%clk 0:01:11]} 41. Rd2 {[%clk 0:01:28]}  Rxd2 {[%clk 0:01:10]} 42. Nxd2 {[%clk 0:01:29]}  b5 {[%clk 0:01:08]} 43. e4 {[%clk 0:01:28]}  fxe4+ {[%clk 0:01:02]} 44. Kxe4 {[%clk 0:01:27]}  Ke6 {[%clk 0:00:53]} 45. Nf3 {[%clk 0:01:01]}  c5 {[%clk 0:00:53]} 46. b3 {[%clk 0:01:00]}  a4 {[%clk 0:00:49]} 47. bxa4 {[%clk 0:01:00]}  bxa4 {[%clk 0:00:49]} 48. Nh4 {[%clk 0:00:56]}  Kf6 {[%clk 0:00:44]} 49. Nf3 {[%clk 0:00:56]}  c4 {[%clk 0:00:37]} 50. Kd4 {[%clk 0:00:19]}  Bxf4 {[%clk 0:00:36]} 51. Kxc4 {[%clk 0:00:20]}  Bd6 {[%clk 0:00:36]} 52. Kb5 {[%clk 0:00:18]}  Bxa3 {[%clk 0:00:36]} 53. Kxa4 {[%clk 0:00:18]}  Be7 {[%clk 0:00:31]} 54. Kb3 {[%clk 0:00:18]}  Kf5 {[%clk 0:00:31]} 55. Kc4 {[%clk 0:00:17]}  Kf4 {[%clk 0:00:31]} 56. Nd4 {[%clk 0:00:16]}  Bf6 {[%clk 0:00:28]} 57. Ne6+ {[%clk 0:00:14]}  Ke5 {[%clk 0:00:26]} 58. Nc5 {[%clk 0:00:13]}  g5 {[%clk 0:00:25]} 59. Kd3 {[%clk 0:00:13]}  Kf4 {[%clk 0:00:23]} 60. Ne4 {[%clk 0:00:10]}  Kf5 {[%clk 0:00:18]} 61. Nxg5 {[%clk 0:00:10]} 1/2-1/2


[Site "https://www.chess.com"]

[Event "Titled Tuesday Blitz October 11 Late 2022"]
[White "Zochowski, Kacper"]
[Black "Erdogdu, Mert"]
[WhiteFideId "1125494"]
[BlackFideId "6301495"]
[WhiteElo "2292"]
[BlackElo "2413"]
[Result "0-1"]
[Round "05"]
[TimeControl "180+1"]
[Date "2022.10.12"]
[WhiteClock "0:00:07"]
[BlackClock "0:01:25"]

1. Nf3 {[%clk 0:02:15]}  d5 {[%clk 0:02:57]} 2. c4 {[%clk 0:02:14]}  e6 {[%clk 0:02:58]} 3. g3 {[%clk 0:02:14]}  c5 {[%clk 0:02:58]} 4. cxd5 {[%clk 0:02:13]}  exd5 {[%clk 0:02:58]} 5. Bg2 {[%clk 0:02:14]}  Nf6 {[%clk 0:02:59]} 6. O-O {[%clk 0:02:14]}  Nc6 {[%clk 0:02:59]} 7. d4 {[%clk 0:02:14]}  Be7 {[%clk 0:02:59]} 8. Nc3 {[%clk 0:02:14]}  O-O {[%clk 0:02:59]} 9. dxc5 {[%clk 0:02:15]}  Bxc5 {[%clk 0:02:59]} 10. a3 {[%clk 0:02:16]}  Ne4 {[%clk 0:02:59]} 11. Nxd5 {[%clk 0:01:33]}  Be6 {[%clk 0:02:58]} 12. Nc3 {[%clk 0:01:32]}  Nxc3 {[%clk 0:02:58]} 13. bxc3 {[%clk 0:01:31]}  Qxd1 {[%clk 0:02:56]} 14. Rxd1 {[%clk 0:01:31]}  Rfe8 {[%clk 0:02:49]} 15. Nd4 {[%clk 0:01:26]}  Na5 {[%clk 0:02:46]} 16. Be3 {[%clk 0:01:23]}  Bc4 {[%clk 0:02:39]} 17. Bf3 {[%clk 0:01:12]}  Rac8 {[%clk 0:02:35]} 18. Nf5 {[%clk 0:01:06]}  Bxe3 {[%clk 0:02:33]} 19. Nxe3 {[%clk 0:01:05]}  Bb3 {[%clk 0:02:31]} 20. Rd7 {[%clk 0:01:04]}  Rxc3 {[%clk 0:02:26]} 21. Kg2 {[%clk 0:00:25]}  g6 {[%clk 0:02:24]} 22. h4 {[%clk 0:00:25]}  h5 {[%clk 0:02:24]} 23. g4 {[%clk 0:00:24]}  Be6 {[%clk 0:02:21]} 24. Rdd1 {[%clk 0:00:21]}  Rxe3 {[%clk 0:02:18]} 25. fxe3 {[%clk 0:00:21]}  hxg4 {[%clk 0:02:19]} 26. Be4 {[%clk 0:00:19]}  Bb3 {[%clk 0:02:06]} 27. Rd5 {[%clk 0:00:09]}  Bxd5 {[%clk 0:02:02]} 28. Bxd5 {[%clk 0:00:09]}  Rxe3 {[%clk 0:02:03]} 29. Kf2 {[%clk 0:00:10]}  Re5 {[%clk 0:02:01]} 30. Bg2 {[%clk 0:00:09]}  Nb3 {[%clk 0:01:55]} 31. Rd1 {[%clk 0:00:09]}  Nc5 {[%clk 0:01:56]} 32. Rd8+ {[%clk 0:00:09]}  Kg7 {[%clk 0:01:56]} 33. Ra8 {[%clk 0:00:10]}  a6 {[%clk 0:01:55]} 34. Rb8 {[%clk 0:00:10]}  Re7 {[%clk 0:01:48]} 35. Rc8 {[%clk 0:00:09]}  Ne4+ {[%clk 0:01:45]} 36. Kg1 {[%clk 0:00:10]}  Ng3 {[%clk 0:01:44]} 37. Rb8 {[%clk 0:00:08]}  Nxe2+ {[%clk 0:01:43]} 38. Kf2 {[%clk 0:00:09]}  g3+ {[%clk 0:01:42]} 39. Kf1 {[%clk 0:00:07]}  Nf4 {[%clk 0:01:36]} 40. Bxb7 {[%clk 0:00:07]}  Rc7 {[%clk 0:01:29]} 41. Ke1 {[%clk 0:00:06]}  Rc1+ {[%clk 0:01:25]} 42. Kd2 {[%clk 0:00:07]}  Rb1 {[%clk 0:01:25]} 0-1


[Site "https://www.chess.com"]

[Event "Titled Tuesday Blitz October 11 Late 2022"]
[White "Aarav Dengla"]
[Black "Bortnyk, Olexandr"]
[WhiteFideId "45059756"]
[BlackFideId "14120828"]
[WhiteElo "2257"]
[BlackElo "2723"]
[Result "0-1"]
[Round "06"]
[TimeControl "180+1"]
[Date "2022.10.11"]
[WhiteClock "0:00:18"]
[BlackClock "0:00:33"]

1. e4 {[%clk 0:03:00]}  f5 {[%clk 0:02:58]} 2. exf5 {[%clk 0:02:57]}  Nf6 {[%clk 0:02:57]} 3. d4 {[%clk 0:02:56]}  d5 {[%clk 0:02:56]} 4. Bd3 {[%clk 0:02:55]}  e6 {[%clk 0:02:55]} 5. fxe6 {[%clk 0:02:53]}  Bxe6 {[%clk 0:02:56]} 6. Nf3 {[%clk 0:02:54]}  Bd6 {[%clk 0:02:54]} 7. h3 {[%clk 0:02:54]}  O-O {[%clk 0:02:54]} 8. O-O {[%clk 0:02:53]}  Ne4 {[%clk 0:02:40]} 9. c4 {[%clk 0:02:49]}  Bxh3 {[%clk 0:02:22]} 10. c5 {[%clk 0:02:31]}  Qd7 {[%clk 0:01:33]} 11. Ne1 {[%clk 0:01:15]}  Be7 {[%clk 0:01:11]} 12. gxh3 {[%clk 0:01:04]}  Qxh3 {[%clk 0:01:10]} 13. Bxe4 {[%clk 0:01:04]}  dxe4 {[%clk 0:01:08]} 14. Qb3+ {[%clk 0:01:04]}  Qxb3 {[%clk 0:01:01]} 15. axb3 {[%clk 0:01:05]}  Nc6 {[%clk 0:00:57]} 16. Be3 {[%clk 0:01:02]}  Rad8 {[%clk 0:00:56]} 17. Nc2 {[%clk 0:01:02]}  Rf6 {[%clk 0:00:54]} 18. Re1 {[%clk 0:01:02]}  Rg6+ {[%clk 0:00:52]} 19. Kf1 {[%clk 0:01:02]}  Bh4 {[%clk 0:00:50]} 20. Nc3 {[%clk 0:01:01]}  Rg4 {[%clk 0:00:37]} 21. Ke2 {[%clk 0:01:00]}  Bf6 {[%clk 0:00:37]} 22. Rg1 {[%clk 0:00:47]}  Rxg1 {[%clk 0:00:34]} 23. Rxg1 {[%clk 0:00:48]}  Bxd4 {[%clk 0:00:35]} 24. Bxd4 {[%clk 0:00:46]}  Nxd4+ {[%clk 0:00:36]} 25. Nxd4 {[%clk 0:00:47]}  Rxd4 {[%clk 0:00:36]} 26. Rg4 {[%clk 0:00:48]}  Rb4 {[%clk 0:00:35]} 27. Kd2 {[%clk 0:00:39]}  e3+ {[%clk 0:00:35]} 28. Kxe3 {[%clk 0:00:29]}  Rxg4 {[%clk 0:00:36]} 29. Nb5 {[%clk 0:00:25]}  Rb4 {[%clk 0:00:32]} 30. Nxc7 {[%clk 0:00:24]}  Rxb3+ {[%clk 0:00:33]} 31. Kd4 {[%clk 0:00:23]}  Rxb2 {[%clk 0:00:33]} 32. Ne8 {[%clk 0:00:23]}  h5 {[%clk 0:00:33]} 33. Nd6 {[%clk 0:00:24]}  h4 {[%clk 0:00:33]} 34. f4 {[%clk 0:00:20]}  h3 {[%clk 0:00:33]} 35. Nf5 {[%clk 0:00:18]}  h2 {[%clk 0:00:32]} 36. Ng3 {[%clk 0:00:18]}  Rb1 {[%clk 0:00:33]} 0-1


[Site "https://www.chess.com"]

[Event "Titled Tuesday Blitz October 11 Late 2022"]
[White "Aldokhin, Ivan"]
[Black "Petrovic, Aleksa"]
[WhiteFideId "24115720"]
[BlackFideId "967629"]
[WhiteElo "2313"]
[BlackElo "2242"]
[Result "1-0"]
[Round "06"]
[TimeControl "180+1"]
[Date "2022.10.12"]
[WhiteClock "0:00:05"]
[BlackClock "0:00:03"]

1. e4 {[%clk 0:03:00]}  e6 {[%clk 0:02:58]} 2. d4 {[%clk 0:02:59]}  d5 {[%clk 0:02:58]} 3. Nc3 {[%clk 0:03:00]}  Bb4 {[%clk 0:02:57]} 4. Ne2 {[%clk 0:03:00]}  dxe4 {[%clk 0:02:52]} 5. a3 {[%clk 0:03:00]}  Be7 {[%clk 0:02:52]} 6. Nxe4 {[%clk 0:03:00]}  Nc6 {[%clk 0:02:53]} 7. Be3 {[%clk 0:02:55]}  Nf6 {[%clk 0:02:52]} 8. Nxf6+ {[%clk 0:02:50]}  Bxf6 {[%clk 0:02:53]} 9. Qd2 {[%clk 0:02:43]}  Ne7 {[%clk 0:02:52]} 10. O-O-O {[%clk 0:02:40]}  Nd5 {[%clk 0:02:51]} 11. Ng3 {[%clk 0:02:24]}  Nxe3 {[%clk 0:02:49]} 12. Qxe3 {[%clk 0:02:16]}  Bg5 {[%clk 0:02:44]} 13. f4 {[%clk 0:02:14]}  Bh6 {[%clk 0:02:44]} 14. Ne4 {[%clk 0:02:06]}  Bd7 {[%clk 0:02:34]} 15. g4 {[%clk 0:02:01]}  g6 {[%clk 0:02:26]} 16. g5 {[%clk 0:02:00]}  Bg7 {[%clk 0:02:26]} 17. d5 {[%clk 0:01:42]}  Qe7 {[%clk 0:02:25]} 18. d6 {[%clk 0:01:35]}  Qd8 {[%clk 0:02:17]} 19. dxc7 {[%clk 0:01:17]}  Qxc7 {[%clk 0:02:18]} 20. Nd6+ {[%clk 0:01:17]}  Ke7 {[%clk 0:02:18]} 21. f5 {[%clk 0:01:13]}  f6 {[%clk 0:01:48]} 22. Bb5 {[%clk 0:00:55]}  e5 {[%clk 0:00:58]} 23. Bxd7 {[%clk 0:00:48]}  Qxd7 {[%clk 0:00:57]} 24. Qc5 {[%clk 0:00:48]}  b6 {[%clk 0:00:47]} 25. Nc8+ {[%clk 0:00:28]}  Ke8 {[%clk 0:00:43]} 26. Rxd7 {[%clk 0:00:23]}  bxc5 {[%clk 0:00:42]} 27. Rc7 {[%clk 0:00:19]}  Kd8 {[%clk 0:00:25]} 28. Rxg7 {[%clk 0:00:18]}  Rxc8 {[%clk 0:00:25]} 29. Rd1+ {[%clk 0:00:17]}  Ke8 {[%clk 0:00:25]} 30. gxf6 {[%clk 0:00:17]}  gxf5 {[%clk 0:00:20]} 31. Rdd7 {[%clk 0:00:16]}  f4 {[%clk 0:00:06]} 32. Kd2 {[%clk 0:00:16]}  h5 {[%clk 0:00:04]} 33. Kd3 {[%clk 0:00:06]}  Rc6 {[%clk 0:00:03]} 34. Rge7+ {[%clk 0:00:05]} 1-0


[Site "https://www.chess.com"]